fUSD/lending_fUSD_20250506
["ID","MTS","AMOUNT","RATE_DAILY","PERIOD"]
[360034198,1746499183567,239.08580846,0.0003,30]
[360034200,1746499328570,566.7,0.00030137,120]
[360034202,1746499344846,181.33,0.00019,2]
[360034203,1746499363273,500.0,0.00029589,30]
[360034204,1746499363511,500.0,0.00029863,35]
[360034205,1746499407476,500.0,0.00029589,30]
[360034206,1746499408088,500.0,0.00029863,30]
[360034207,1746499414362,450.0,0.0003,30]
[360034208,1746499480446,368.26626768,0.000299,60]
[360034209,1746499485430,368.26626757,0.000299,60]
[360034210,1746499495594,368.26626757,0.000299,60]
[360034212,1746499498947,689.39804006,0.00018998,2]
[360034213,1746499498968,8.44195994,0.00018998,2]
[360034214,1746499505410,368.26626757,0.000299,60]
[360034215,1746499515439,368.26626757,0.000299,60]
[360034216,1746499525435,368.26626757,0.000299,60]
[360034217,1746499535413,368.26626757,0.000299,60]
[360034218,1746499540426,368.26626757,0.000299,60]
[360034219,1746499544262,1000.0,0.00018944,2]
[360034220,1746499550419,368.26626757,0.000299,60]
[360034221,1746499555419,368.26626757,0.000299,60]
[360034222,1746499556221,231.050611,0.0003,30]
[360034223,1746499565387,368.26626757,0.000299,60]
[360034224,1746499575429,368.26626757,0.000299,60]
[360034225,1746499590435,368.26626757,0.000299,60]
[360034226,1746499595432,368.26626757,0.000299,60]
[360034227,1746499605427,368.26626757,0.000299,60]
[360034229,1746499616712,368.26626757,0.000299,60]
[360034230,1746499625441,368.26626757,0.000299,60]
[360034231,1746499635587,368.26626757,0.000299,60]
[360034232,1746499640431,368.26626757,0.000299,60]
[360034233,1746499650426,368.26626757,0.000299,60]
[360034237,1746499758662,375.90399251,0.0003,30]
[360034239,1746499781281,550.16,0.00018924,2]
[360034245,1746499805149,2441.39804006,0.00019,2]
[360034246,1746499805172,104.89195994,0.00019,2]
[360034247,1746499806886,2546.29,0.00019,2]
[360034248,1746499808290,1077.491075,7.945e-05,2]
[360034249,1746499808509,271.32696506,0.00019,2]
[360034250,1746499808532,2274.96303494,0.00019,2]
[360034251,1746499812230,300.0,0.00019,2]
[360034252,1746499812252,1725.03696506,0.00019,2]
[360034253,1746499812277,521.25303494,0.00019,2]
[360034254,1746499813938,2546.29,0.00019,2]
[360034258,1746499831760,-164.14,0.00019598,2]
[360034259,1746499831771,-250.0,0.00019599,2]
[360034260,1746499831780,-166.0,0.000196,2]
[360034261,1746499831790,-200.0,0.000196,2]
[360034262,1746499831800,-1206.81841393,0.000197,2]
[360034263,1746499831809,-166.0,0.000198,2]
[360034264,1746499831819,-340.13678857,0.00019825,2]
[360034265,1746499831828,-845.99084664,0.00019875,2]
[360034266,1746499831837,-207.4,0.00019888,2]
[360034267,1746499831846,-1200.0,0.00019896,2]
[360034268,1746499831856,-300.0,0.00019896,2]
[360034269,1746499831865,-300.0,0.00019896,2]
[360034270,1746499831874,-2381.16638478,0.00019897,2]
[360034271,1746499831884,-2381.16638474,0.00019897,2]
[360034272,1746499831893,-2381.16638474,0.00019898,2]
[360034273,1746499831903,-2381.16638474,0.00019898,2]
[360034274,1746499831912,-2055.95261039,0.00019898,2]
[360034275,1746499831922,-678.2487,0.00019898,2]
[360034276,1746499831931,-2381.16638474,0.00019898,2]
[360034277,1746499831942,-2381.16638474,0.00019899,2]
[360034278,1746499831952,-1000.0,0.00019899,2]
[360034279,1746499831962,-1000.0,0.00019899,2]
[360034280,1746499831971,-1000.0,0.00019899,2]
[360034281,1746499831981,-1000.0,0.00019899,2]
[360034282,1746499831990,-1000.0,0.00019899,2]
[360034283,1746499831999,-1000.0,0.00019899,2]
[360034284,1746499832009,-1000.0,0.00019899,2]
[360034285,1746499832018,-1000.0,0.00019899,2]
[360034286,1746499832028,-1000.0,0.00019899,2]
[360034287,1746499832038,-1000.0,0.00019899,2]
[360034288,1746499832047,-1000.0,0.00019899,2]
[360034289,1746499832057,-1000.0,0.00019899,2]
[360034290,1746499832066,-816.08906228,0.00019899,2]
[360034291,1746499832082,-183.91093772,0.00019899,2]
[360034292,1746499832090,-172.72710421,0.00019899,2]
[360034312,1746499838001,-827.27289579,0.00019899,2]
[360034313,1746499838011,-1000.0,0.00019899,2]
[360034314,1746499838021,-310.52716421,0.00019899,2]
[360034315,1746499838032,-689.47283579,0.00019899,2]
[360034316,1746499838042,-212.0,0.00019899,2]
[360034317,1746499838051,-582.42522971,0.00019899,2]
[360034318,1746499838061,-362.30193469,0.00019899,2]
[360034319,1746499838072,-737.5500003,0.00019899,2]
[360034322,1746499839952,-1281.31444975,0.00019899,2]
[360034323,1746499839962,-305.87799628,0.00019899,2]
[360034324,1746499839973,-737.68580441,0.00019899,2]
[360034325,1746499840002,-302.15921825,0.00019899,2]
[360034326,1746499840011,-1345.72301887,0.00019899,2]
[360034327,1746499840021,-582.42522966,0.00019899,2]
[360034328,1746499840030,-1345.72301887,0.00019899,2]
[360034329,1746499840039,-2381.16638474,0.00019899,2]
[360034330,1746499840048,-1345.72301887,0.00019899,2]
[360034331,1746499840058,-582.42522966,0.00019899,2]
[360034332,1746499840067,-1345.72301887,0.00019899,2]
[360034333,1746499840076,-1345.72301887,0.000199,2]
[360034334,1746499840085,-582.42522966,0.000199,2]
[360034335,1746499840094,-2381.16638474,0.000199,2]
[360034336,1746499840104,-1345.72301887,0.000199,2]
[360034337,1746499840113,-1345.72301887,0.000199,2]
[360034338,1746499840122,-582.42522966,0.000199,2]
[360034339,1746499840131,-1345.72301887,0.000199,2]
[360034340,1746499840140,-582.42522966,0.000199,2]
[360034341,1746499840150,-2381.16638474,0.000199,2]
[360034342,1746499840159,-1345.72301887,0.000199,2]
[360034343,1746499840169,-179.49894891,0.000199,2]
[360034344,1746499840182,-15572.23683697,0.000199,2]
[360034345,1746499840191,-269.2303151,0.000199,2]
[360034346,1746499840201,-150.0,0.00019918,7]
[360034347,1746499840210,-500.0,0.00019973,2]
[360034348,1746499840219,-583.18578003,0.00019973,2]
[360034349,1746499840228,-501.26193126,0.00019973,2]
[360034350,1746499840237,-501.06170248,0.00019973,2]
[360034351,1746499840246,-500.79974949,0.00019973,2]
[360034352,1746499840255,-153.36707407,0.00019974,2]
[360034353,1746499840265,-500.0,0.00019985,2]
[360034354,1746499840275,-500.0,0.00019985,2]
[360034355,1746499840285,-500.0,0.00019985,2]
[360034356,1746499840294,-500.0,0.00019985,2]
[360034357,1746499840303,-500.0,0.00019985,2]
[360034358,1746499840312,-500.0,0.00019985,2]
[360034359,1746499840321,-500.0,0.00019985,2]
[360034360,1746499840330,-500.0,0.00019985,2]
[360034361,1746499840339,-521.97433743,0.00019985,2]
[360034362,1746499840349,-500.0,0.00019985,2]
[360034363,1746499840358,-500.0,0.00019985,2]
[360034364,1746499840367,-500.0,0.00019985,2]
[360034365,1746499840376,-500.0,0.00019985,2]
[360034366,1746499840385,-500.0,0.00019985,2]
[360034367,1746499840394,-500.0,0.00019985,2]
[360034368,1746499840404,-500.0,0.00019985,2]
[360034369,1746499840414,-500.0,0.00019985,2]
[360034370,1746499840423,-500.0,0.00019985,2]
[360034371,1746499840432,-500.0,0.00019985,2]
[360034372,1746499840442,-500.0,0.00019985,2]
[360034373,1746499840451,-500.0,0.00019985,2]
[360034374,1746499840460,-500.0,0.00019985,2]
[360034375,1746499840473,-500.0,0.00019985,2]
[360034376,1746499840482,-500.0,0.00019985,2]
[360034377,1746499840494,-500.0,0.00019985,2]
[360034378,1746499840505,-500.0,0.00019985,2]
[360034379,1746499840514,-500.0,0.00019985,2]
[360034380,1746499840524,-500.0,0.00019985,2]
[360034381,1746499840534,-500.0,0.00019985,2]
[360034382,1746499840543,-500.0,0.00019985,2]
[360034383,1746499840552,-500.0,0.00019985,2]
[360034384,1746499840561,-500.0,0.00019985,2]
[360034386,1746499840570,-500.0,0.00019985,2]
[360034387,1746499840580,-500.0,0.00019985,2]
[360034388,1746499840590,-500.0,0.00019985,2]
[360034389,1746499840599,-1744.5059557,0.00019986,2]
[360034390,1746499840608,-36368.0655514,0.00019986,2]
[360034391,1746499840617,-5370.9806365,0.00019986,2]
[360034392,1746499840626,-248.48682418,0.00019996,2]
[360034393,1746499840636,-463.45643991,0.00019996,2]
[360034394,1746499840645,-450.0,0.00019996,2]
[360034395,1746499840654,-471.64604819,0.00019996,2]
[360034396,1746499840663,-456.09214176,0.00019996,2]
[360034397,1746499840672,-479.99356876,0.00019996,2]
[360034398,1746499840682,-536.28918008,0.00019996,2]
[360034399,1746499840692,-450.0,0.00019996,2]
[360034400,1746499840701,-454.1614476,0.00019996,2]
[360034401,1746499840710,-308.94026433,0.00019996,2]
[360034402,1746499840720,-458.42820587,0.00019996,2]
[360034403,1746499840730,-450.0,0.00019996,2]
[360034404,1746499840739,-450.0,0.00019996,2]
[360034405,1746499840748,-342.75780262,0.00019996,2]
[360034406,1746499840758,-450.0,0.00019996,2]
[360034407,1746499840767,-450.0,0.00019996,2]
[360034408,1746499840777,-450.0,0.00019996,2]
[360034409,1746499840787,-404.55328028,0.00019996,2]
[360034410,1746499840796,-216.03491599,0.00019996,2]
[360034411,1746499840806,-450.0,0.00019997,2]
[360034412,1746499840816,-450.0,0.00019997,2]
[360034413,1746499840825,-451.39212043,0.00019997,2]
[360034414,1746499840835,-450.0,0.00019997,2]
[360034415,1746499840845,-450.0,0.00019997,2]
[360034416,1746499840854,-462.80212237,0.00019997,2]
[360034417,1746499840863,-488.2455134,0.00019997,2]
[360034418,1746499840873,-493.93913375,0.00019997,2]
[360034419,1746499840882,-477.866914,0.00019997,2]
[360034420,1746499840892,-450.0,0.00019997,2]
[360034421,1746499840902,-461.63915432,0.00019997,2]
[360034422,1746499840911,-450.0,0.00019997,2]
[360034423,1746499840921,-472.586127,0.00019997,2]
[360034424,1746499840930,-469.30671581,0.00019997,2]
[360034425,1746499840939,-465.42206593,0.00019997,2]
[360034426,1746499840949,-453.35200801,0.00019997,2]
[360034427,1746499840962,-450.0,0.00019997,2]
[360034428,1746499840972,-454.8443088,0.00019997,2]
[360034429,1746499840982,-450.0,0.00019997,2]
[360034430,1746499840991,-506.84870607,0.00019997,2]
[360034431,1746499841001,-485.78564461,0.00019997,2]
[360034432,1746499841011,-450.0,0.00019997,2]
[360034433,1746499841020,-198.8974958,0.00019997,2]
[360034434,1746499841030,-450.0,0.00019997,2]
[360034435,1746499841040,-500.72399423,0.00019997,2]
[360034436,1746499841050,-462.82195464,0.00019997,2]
[360034437,1746499841059,-450.0,0.00019997,2]
[360034438,1746499841068,-555.616,0.00019997,2]
[360034439,1746499841078,-450.0,0.00019997,2]
[360034440,1746499841087,-450.0,0.00019997,2]
[360034441,1746499841097,-450.0,0.00019997,2]
[360034442,1746499841106,-450.0,0.00019997,2]
[360034443,1746499841116,-450.0,0.00019997,2]
[360034444,1746499841125,-450.0,0.00019997,2]
[360034445,1746499841135,-450.0,0.00019997,2]
[360034446,1746499841144,-477.09067849,0.00019997,2]
[360034447,1746499841334,-450.0,0.00019997,2]
[360034448,1746499841345,-576.54793983,0.00019997,2]
[360034449,1746499841355,-450.0,0.00019997,2]
[360034450,1746499841365,-287.99539428,0.00019997,2]
[360034451,1746499841374,-181.21627032,0.00019997,2]
[360034452,1746499841383,-450.0,0.00019997,2]
[360034453,1746499841393,-450.0,0.00019997,2]
[360034454,1746499841402,-450.37,0.00019998,2]
[360034455,1746499841411,-491.23860282,0.00019998,2]
[360034456,1746499841420,-450.0,0.00019998,2]
[360034457,1746499841430,-511.66518032,0.00019998,2]
[360034458,1746499841439,-450.0,0.00019998,2]
[360034459,1746499841448,-465.97249816,0.00019998,2]
[360034460,1746499841457,-450.0,0.00019998,2]
[360034461,1746499841466,-450.0,0.00019998,2]
[360034462,1746499841475,-396.777921,0.00019998,2]
[360034463,1746499841485,-450.0,0.00019998,2]
[360034464,1746499841494,-947.250285,0.00019998,2]
[360034465,1746499841503,-760.022808,0.00019998,2]
[360034466,1746499841512,-450.0,0.00019998,2]
[360034467,1746499841521,-220.7416425,0.00019998,2]
[360034468,1746499841532,-450.0,0.00019998,2]
[360034469,1746499841541,-157.13145534,0.00019998,2]
[360034470,1746499841550,-450.0,0.00019998,2]
[360034471,1746499841560,-450.0,0.00019998,2]
[360034472,1746499841569,-450.0,0.00019998,2]
[360034473,1746499841579,-450.0,0.00019998,2]
[360034474,1746499841589,-450.0,0.00019998,2]
[360034475,1746499841598,-450.0,0.00019998,2]
[360034476,1746499841608,-450.0,0.00019998,2]
[360034477,1746499841617,-450.0,0.00019998,2]
[360034478,1746499841626,-453.21425731,0.00019998,2]
[360034479,1746499841636,-450.0,0.00019998,2]
[360034480,1746499841645,-450.0,0.00019998,2]
[360034481,1746499841654,-450.0,0.00019998,2]
[360034482,1746499841663,-159.85371253,0.00019998,2]
[360034483,1746499841672,-450.0,0.00019998,2]
[360034484,1746499841681,-450.0,0.00019998,2]
[360034485,1746499841690,-476.41857828,0.00019998,2]
[360034486,1746499841699,-450.0,0.00019998,2]
[360034487,1746499841709,-450.0,0.00019998,2]
[360034488,1746499841718,-379.97,0.00019998,2]
[360034489,1746499841727,-450.0,0.00019998,2]
[360034490,1746499841736,-450.0,0.00019998,2]
[360034491,1746499841745,-450.0,0.00019998,2]
[360034492,1746499841754,-450.0,0.00019998,2]
[360034493,1746499841764,-450.0,0.00019998,2]
[360034494,1746499841773,-450.0,0.00019998,2]
[360034495,1746499841782,-450.0,0.00019998,2]
[360034496,1746499841792,-296.68944907,0.00019998,2]
[360034497,1746499841801,-579.42254713,0.00019998,2]
[360034498,1746499841810,-450.0,0.00019998,2]
[360034499,1746499841819,-501.94800008,0.00019998,2]
[360034500,1746499841828,-450.0,0.00019998,2]
[360034501,1746499841837,-450.0,0.00019998,2]
[360034502,1746499841846,-299.31856176,0.00019998,2]
[360034503,1746499841855,-569.90345288,0.00019998,2]
[360034504,1746499841864,-450.0,0.00019998,2]
[360034505,1746499841873,-450.0,0.00019998,2]
[360034506,1746499841882,-450.0,0.00019998,2]
[360034507,1746499841892,-450.0,0.00019998,2]
[360034508,1746499841900,-450.0,0.00019998,2]
[360034509,1746499841910,-450.0,0.00019998,2]
[360034510,1746499841919,-450.0,0.00019998,2]
[360034511,1746499841928,-469.10441773,0.00019998,2]
[360034512,1746499841937,-549.50452412,0.00019998,2]
[360034513,1746499841946,-450.0,0.00019998,2]
[360034514,1746499841955,-450.0,0.00019998,2]
[360034515,1746499841965,-450.0,0.00019998,2]
[360034516,1746499841974,-554.64211063,0.00019998,2]
[360034517,1746499841986,-450.0,0.00019998,2]
[360034518,1746499841995,-450.0,0.00019998,2]
[360034519,1746499842004,-450.0,0.00019998,2]
[360034520,1746499842014,-833.51,0.00019998,2]
[360034521,1746499842023,-450.0,0.00019998,2]
[360034522,1746499842032,-450.0,0.00019998,2]
[360034523,1746499842041,-500.0,0.00019998,2]
[360034524,1746499842051,-450.0,0.00019998,2]
[360034525,1746499842060,-455.09,0.00019998,2]
[360034526,1746499842069,-450.0,0.00019998,2]
[360034527,1746499842078,-450.0,0.00019998,2]
[360034528,1746499842087,-6219.63,0.00019998,2]
[360034529,1746499842097,-482.88340103,0.00019998,2]
[360034530,1746499842106,-450.0,0.00019998,2]
[360034531,1746499842115,-450.0,0.00019998,2]
[360034532,1746499842124,-500.0,0.00019998,2]
[360034533,1746499842133,-450.0,0.00019998,2]
[360034534,1746499842142,-343.75816303,0.00019998,2]
[360034535,1746499842151,-450.0,0.00019998,2]
[360034536,1746499842160,-450.0,0.00019998,2]
[360034537,1746499842169,-450.0,0.00019998,2]
[360034538,1746499842181,-289.9018372,0.00019998,2]
[360034539,1746499842190,-450.0,0.00019998,2]
[360034540,1746499842199,-450.0,0.00019998,2]
[360034541,1746499842208,-500.0,0.00019999,2]
[360034542,1746499842217,-500.0,0.00019999,2]
[360034543,1746499842226,-358.09781659,0.00019999,2]
[360034544,1746499842235,-429.98642071,0.00019999,2]
[360034545,1746499842245,-500.0,0.00019999,2]
[360034546,1746499842254,-450.0,0.00019999,2]
[360034547,1746499842263,-450.0,0.00019999,2]
[360034548,1746499842272,-450.0,0.00019999,2]
[360034549,1746499842282,-450.0,0.00019999,2]
[360034550,1746499842291,-450.0,0.00019999,2]
[360034551,1746499842300,-450.0,0.00019999,2]
[360034552,1746499842309,-450.0,0.00019999,2]
[360034553,1746499842319,-450.0,0.00019999,2]
[360034554,1746499842327,-450.0,0.00019999,2]
[360034555,1746499842337,-450.0,0.00019999,2]
[360034556,1746499842347,-450.0,0.00019999,2]
[360034557,1746499842356,-450.0,0.00019999,2]
[360034558,1746499842365,-450.0,0.00019999,2]
[360034559,1746499842374,-450.0,0.00019999,2]
[360034560,1746499842383,-450.0,0.00019999,2]
[360034561,1746499842393,-450.0,0.00019999,2]
[360034562,1746499842403,-450.0,0.00019999,2]
[360034563,1746499842412,-217.49955241,0.00019999,2]
[360034564,1746499842421,-332.82851744,0.00019999,2]
[360034565,1746499842430,-452.99492293,0.00019999,2]
[360034566,1746499842439,-450.0,0.00019999,2]
[360034567,1746499842448,-450.0,0.00019999,2]
[360034568,1746499842457,-450.0,0.00019999,2]
[360034569,1746499842467,-175.6442106,0.00019999,2]
[360034570,1746499842476,-315.69530754,0.00019999,2]
[360034571,1746499842485,-150.0,0.00019999,2]
[360034572,1746499842494,-459.76754831,0.00019999,2]
[360034573,1746499842503,-450.0,0.00019999,2]
[360034574,1746499842512,-450.0,0.00019999,2]
[360034576,1746499842522,-450.0,0.00019999,2]
[360034577,1746499842532,-450.0,0.00019999,2]
[360034579,1746499842541,-525.35605769,0.00019999,2]
[360034580,1746499842551,-461.22329815,0.00019999,2]
[360034582,1746499842560,-568.14759759,0.00019999,2]
[360034583,1746499842570,-514.20490005,0.00019999,2]
[360034584,1746499842580,-466.67150706,0.00019999,2]
[360034585,1746499842589,-450.0,0.00019999,2]
[360034586,1746499842599,-450.0,0.00019999,2]
[360034587,1746499842609,-461.11135999,0.00019999,2]
[360034588,1746499842618,-176.18230561,0.00019999,2]
[360034589,1746499842627,-457.82952224,0.00019999,2]
[360034590,1746499842637,-450.0,0.00019999,2]
[360034591,1746499842646,-450.0,0.00019999,2]
[360034592,1746499842655,-450.0,0.00019999,2]
[360034593,1746499842665,-450.0,0.00019999,2]
[360034594,1746499842674,-450.0,0.00019999,2]
[360034595,1746499842683,-450.0,0.00019999,2]
[360034596,1746499842692,-450.0,0.00019999,2]
[360034598,1746499842701,-450.0,0.00019999,2]
[360034599,1746499842711,-450.0,0.00019999,2]
[360034600,1746499842720,-450.0,0.00019999,2]
[360034601,1746499842731,-450.0,0.00019999,2]
[360034603,1746499842743,-264.1708,0.00019999,2]
[360034606,1746499842756,-545.28170828,0.00019999,2]
[360034608,1746499842769,-150.0,0.00019999,2]
[360034609,1746499842782,-500.0,0.00019999,2]
[360034610,1746499842793,-500.0,0.00019999,2]
[360034611,1746499842803,-152.04642897,0.00019999,2]
[360034612,1746499842815,-500.0,0.00019999,2]
[360034613,1746499842827,-150.0,0.00019999,2]
[360034614,1746499842839,-500.0,0.00019999,2]
[360034615,1746499842850,-198.13530487,0.00019999,2]
[360034616,1746499842862,-150.0,0.00019999,2]
[360034617,1746499842873,-450.0,0.00019999,2]
[360034618,1746499842884,-321.84515191,0.00019999,2]
[360034619,1746499842897,-450.0,0.00019999,2]
[360034620,1746499842908,-450.0,0.00019999,2]
[360034621,1746499842919,-461.0000001,0.00019999,2]
[360034622,1746499842930,-463.16366444,0.00019999,2]
[360034623,1746499842941,-207.67752259,0.00019999,2]
[360034624,1746499842951,-467.3072821,0.00019999,2]
[360034625,1746499842961,-490.28766509,0.00019999,2]
[360034626,1746499842973,-416.98763621,0.00019999,2]
[360034627,1746499842984,-150.0,0.00019999,2]
[360034628,1746499842996,-500.0,0.00019999,2]
[360034629,1746499843007,-450.0,0.00019999,2]
[360034630,1746499843019,-584.97252211,0.00019999,2]
[360034631,1746499843031,-203.31526286,0.00019999,2]
[360034632,1746499843046,-150.0,0.00019999,2]
[360034633,1746499843058,-303.47060265,0.00019999,2]
[360034634,1746499843070,-381.80816265,0.00019999,2]
[360034635,1746499843081,-335.03624383,0.00019999,2]
[360034636,1746499843092,-210.20511169,0.00019999,2]
[360034637,1746499843103,-833.51,0.00019999,2]
[360034638,1746499843115,-833.51,0.00019999,2]
[360034639,1746499843127,-833.51,0.00019999,2]
[360034640,1746499843138,-833.51,0.00019999,2]
[360034641,1746499843149,-833.51,0.00019999,2]
[360034642,1746499843160,-450.0,0.00019999,2]
[360034643,1746499843171,-833.51,0.00019999,2]
[360034644,1746499843186,-450.0,0.00019999,2]
[360034645,1746499843197,-833.51,0.00019999,2]
[360034647,1746499843209,-450.0,0.00019999,2]
[360034649,1746499843220,-833.51,0.00019999,2]
[360034651,1746499843233,-450.0,0.00019999,2]
[360034654,1746499843246,-833.51,0.00019999,2]
[360034655,1746499843259,-450.0,0.00019999,2]
[360034656,1746499843271,-833.51,0.00019999,2]
[360034657,1746499843283,-450.0,0.00019999,2]
[360034658,1746499843294,-833.51,0.00019999,2]
[360034659,1746499843304,-450.0,0.00019999,2]
[360034660,1746499843315,-833.51,0.00019999,2]
[360034661,1746499843325,-450.0,0.00019999,2]
[360034662,1746499843335,-833.51,0.00019999,2]
[360034663,1746499843347,-450.0,0.00019999,2]
[360034664,1746499843361,-833.51,0.00019999,2]
[360034665,1746499843374,-450.0,0.00019999,2]
[360034666,1746499843384,-833.51,0.00019999,2]
[360034667,1746499843394,-450.0,0.00019999,2]
[360034668,1746499843404,-833.51,0.00019999,2]
[360034669,1746499843414,-450.0,0.00019999,2]
[360034670,1746499843426,-833.51,0.00019999,2]
[360034671,1746499843438,-833.51,0.00019999,2]
[360034672,1746499843450,-833.51,0.00019999,2]
[360034673,1746499843462,-833.51,0.00019999,2]
[360034674,1746499843474,-833.51,0.00019999,2]
[360034675,1746499843484,-833.51,0.00019999,2]
[360034676,1746499843494,-833.71,0.00019999,2]
[360034677,1746499843504,-450.0,0.00019999,2]
[360034678,1746499843515,-450.0,0.00019999,2]
[360034679,1746499843526,-450.0,0.00019999,2]
[360034680,1746499843537,-151.11134013,0.00019999,2]
[360034681,1746499843548,-487.04203067,0.00019999,2]
[360034682,1746499843559,-455.09,0.00019999,2]
[360034683,1746499843570,-455.09,0.00019999,2]
[360034684,1746499843582,-455.09,0.00019999,2]
[360034685,1746499843593,-450.0,0.00019999,2]
[360034686,1746499843604,-455.09,0.00019999,2]
[360034687,1746499843615,-159.8172007,0.00019999,2]
[360034688,1746499843627,-455.09,0.00019999,2]
[360034689,1746499843638,-455.09,0.00019999,2]
[360034690,1746499843649,-455.09,0.00019999,2]
[360034691,1746499843660,-455.09,0.00019999,2]
[360034692,1746499843671,-455.09,0.00019999,2]
[360034693,1746499843682,-455.09,0.00019999,2]
[360034694,1746499843693,-455.09,0.00019999,2]
[360034695,1746499843704,-455.09,0.00019999,2]
[360034696,1746499843718,-455.09,0.00019999,2]
[360034697,1746499843729,-455.09,0.00019999,2]
[360034698,1746499843740,-455.09,0.00019999,2]
[360034699,1746499843751,-450.0,0.00019999,2]
[360034700,1746499843762,-455.09,0.00019999,2]
[360034701,1746499843774,-450.0,0.00019999,2]
[360034702,1746499843785,-455.09,0.00019999,2]
[360034703,1746499843796,-450.0,0.00019999,2]
[360034704,1746499843807,-455.09,0.00019999,2]
[360034705,1746499843818,-450.0,0.00019999,2]
[360034706,1746499843829,-455.09,0.00019999,2]
[360034707,1746499843839,-450.0,0.00019999,2]
[360034708,1746499843849,-455.09,0.00019999,2]
[360034709,1746499843860,-450.0,0.00019999,2]
[360034710,1746499843871,-455.09,0.00019999,2]
[360034711,1746499843882,-450.0,0.00019999,2]
[360034712,1746499843892,-455.09,0.00019999,2]
[360034713,1746499843903,-505.96659849,0.00019999,2]
[360034714,1746499843913,-455.31,0.00019999,2]
[360034715,1746499843924,-6219.63,0.00019999,2]
[360034716,1746499843934,-6219.63,0.00019999,2]
[360034717,1746499843945,-6219.63,0.00019999,2]
[360034718,1746499843956,-6219.63,0.00019999,2]
[360034719,1746499843967,-6219.63,0.00019999,2]
[360034720,1746499843978,-6219.63,0.00019999,2]
[360034721,1746499843989,-6219.63,0.00019999,2]
[360034722,1746499844000,-6219.63,0.00019999,2]
[360034723,1746499844011,-6219.63,0.00019999,2]
[360034724,1746499844022,-6219.63,0.00019999,2]
[360034725,1746499844033,-6219.63,0.00019999,2]
[360034726,1746499844044,-6219.63,0.00019999,2]
[360034727,1746499844055,-6219.63,0.00019999,2]
[360034728,1746499844065,-6219.63,0.00019999,2]
[360034729,1746499844076,-6219.63,0.00019999,2]
[360034730,1746499844087,-6219.63,0.00019999,2]
[360034731,1746499844098,-6219.63,0.00019999,2]
[360034732,1746499844109,-6219.63,0.00019999,2]
[360034733,1746499844120,-6219.63,0.00019999,2]
[360034734,1746499844131,-6219.63,0.00019999,2]
[360034735,1746499844142,-6219.63,0.00019999,2]
[360034736,1746499844152,-6219.63,0.00019999,2]
[360034737,1746499844163,-498.3542331,0.00019999,2]
[360034738,1746499844175,-6219.75,0.00019999,2]
[360034739,1746499844187,-470.0,0.00019999,2]
[360034740,1746499844198,-897.0,0.0002,2]
[360034741,1746499844208,-187.74475872,0.0002,2]
[360034742,1746499844219,-508046.62182218,0.0002,2]
[360034743,1746499844363,-145.29872344,0.00019985,2]
[360034744,1746499844413,-354.70127656,0.00019985,2]
[360034745,1746499844424,-500.0,0.00019985,2]
[360034746,1746499844435,-500.0,0.00019985,2]
[360034747,1746499844634,-500.0,0.00019985,2]
[360034748,1746499844644,-500.0,0.00019985,2]